Cogmind - Beta 11 @@@ ROGUE MODE // 2022.04.14 @ 16:57:38 Player: ktur Result: Destroyed by D-53 Grenadier with Mini Grenade Launcher Performance ------------- Evolutions (0) 0 Regions Visited (2) 400 Robots Destroyed (22) 110 Value Destroyed (418) 418 Prototype IDs (0) 0 Alien Tech Used (0) 0 Bonus (0) 0 TOTAL SCORE: 928 Bonus ------- None Cogmind --------- Core Integrity 0/250 Matter 300/300 Energy 100/100 System Corruption 3% Temperature Cool (0) Movement Treading (160) Location -10/Mines Parts ------- > --- POWER (1) -------- (None) > --- PROPULSION (2) --- Light Treads Light Treads > --- UTILITY (2) ------ Large Storage Unit Light Armor Plating > --- WEAPON (2) ------- Light Assault Rifle > --- INVENTORY (15) --- Light Nuclear Core Light Treads Light Treads Flight Unit Flight Unit Small Storage Unit Medium Storage Unit High-capacity Storage Unit Huge Storage Unit Light Armor Plating Hacking Suite Light Assault Rifle Light Assault Rifle Grenade Launcher Mining Claw Peak State ------------ > --- POWER ------------ Light Ion Engine > --- PROPULSION ------- Light Treads Light Treads > --- UTILITY ---------- Small Storage Unit Large Storage Unit > --- WEAPON ----------- Assault Rifle Light Assault Rifle > --- INVENTORY -------- Light Nuclear Core Aluminum Leg Aluminum Leg Wheel Wheel Medium Laser Light Assault Rifle Light Assault Rifle [Rating: 8] Favorites ----------- Power Light Ion Engine Engine Light Ion Engine Propulsion Light Treads Treads Light Treads Utility Large Storage Unit Storage Large Storage Unit Protection Light Armor Plating Weapon Light Assault Rifle Ballistic Gun Light Assault Rifle Build | -11 -10 -10 ------- Run | Scr Mat Min Slots Evolved . | . . . Power . | . . . Propulsion . | . . . Utility . | . . . Weapon . | . . . Parts Attached 13 | 6 7 . Power 3 | 1 2 . Engine 3 | 1 2 . Core . | . . . Reactor . | . . . Propulsion 4 | 2 2 . Treads 4 | 2 2 . Leg . | . . . Wheel . | . . . Hover . | . . . Flight . | . . . Utility 3 | 1 2 . Device . | . . . Storage 2 | 1 1 . Processor . | . . . Hackware . | . . . Protection 1 | . 1 . Artifact . | . . . Weapon 3 | 2 1 . Energy Gun . | . . . Energy Cannon . | . . . Ballistic Gun 3 | 2 1 . Ballistic Cannon . | . . . Launcher . | . . . Special Weapon . | . . . Impact Weapon . | . . . Slashing Weapon . | . . . Piercing Weapon . | . . . Special Melee Weapon . | . . . Unidentified Prototypes . | . . . Parts Lost 2 | . . 2 Power 1 | . . 1 Propulsion . | . . . Utility . | . . . Weapon 1 | . . 1 Highest Loss Streak 2 | . . 2 To Critical Strikes . | . . . Average Slot Usage (%) 96 | . 95 99 Engine 13 | . 14 13 Treads 28 | . 28 28 Storage 16 | . 16 14 Protection 8 | . 7 14 Ballistic Gun 27 | . 28 27 Naked Turns . | . . . Heaviest Build 31 | 11 31 28 Greatest Support 40 | 40 40 40 Greatest Overweight (x) 2 | 2 . . Average Overweight (x) . | . . . Largest Inventory Capacity 15 | 8 15 15 Average Capacity 13 | 7 12 15 Most Carried 15 | 7 15 15 Average Carried 12 | 3 12 15 Final Capacity 15 | 8 15 15 Final Carried 15 | 6 15 15 Class Distribution -------------------- 100% | Mutant Dominant Class ---------------- Mutant | -10/Materials Mutant | -10/Mines Resources | -11 -10 -10 ----------- Run | Scr Mat Min Matter Collected 651 | 238 406 7 Remotely . | . . . Salvage Created 690 | . 690 . Parts 47 | . 47 . Haulers Intercepted 2 | . 2 . Recyclers Shooed 2 | . 2 . Parts Field Recycled . | . . . Retrieved Matter . | . . . Parts Self-Destructed . | . . . Prevented . | . . . Kills | -11 -10 -10 ------- Run | Scr Mat Min Combat Hostiles Destroyed 15 | . 15 . Guns 15 | . 15 . Classes Destroyed 6 | . 6 . Worker 3 | . 3 . Hauler 2 | . 2 . Operator 1 | . 1 . Watcher 1 | . 1 . Swarmer 6 | . 6 . Grunt 9 | . 9 . Best Kill Streak 5 | . 5 . Combat Bots Only 3 | . 3 . Max Kills in Single Turn 2 | . 2 . Gunslinging . | . . . Exploded . | . . . Melee . | . . . Uniques/NPCs Destroyed . | . . . Combat | -11 -10 -10 -------- Run | Scr Mat Min Damage Taken 1023 | . 702 321 Core 257 | . 172 85 Absorbed by Shields . | . . . Core Remaining (%) 100 | 100 . . Volleys Fired 90 | . 90 . Largest 2 | . 2 . Hottest 40 | . 40 . Shots Fired 180 | . 180 . Gun 180 | . 180 . Cannon . | . . . Launcher . | . . . Special . | . . . Kinetic 180 | . 180 . Thermal . | . . . Explosive . | . . . Electromagnetic . | . . . Robot Hit Streak 13 | . 13 . Robot Miss Streak 5 | . 5 . Penetration Max . | . . . Secondary Targets 2 | . 2 . Max Gunslinging Chain 1 | . 1 . Shots Hit Robots 103 | . 103 . Core Hits 38 | . 38 . Critical Kills . | . . . Critical Parts Destroyed . | . . . Critical Strikes . | . . . Melee Attacks . | . . . Impact . | . . . Slashing . | . . . Piercing . | . . . Sneak Attacks . | . . . Combat Hostiles . | . . . Follow-up Attacks . | . . . Damage Inflicted 1017 | . 1017 . Guns 994 | . 994 . Cannons . | . . . Explosions . | . . . Melee . | . . . Ramming 23 | . 23 . Kinetic 994 | . 994 . Thermal . | . . . Explosive . | . . . Electromagnetic . | . . . Impact . | . . . Slashing . | . . . Piercing . | . . . Highest Corruption 3 | . 3 3 Average Corruption 2 | . 2 3 Corruption Purged . | . . . Corruption Blocked . | . . . Effects 19 | . 10 9 Message Errors 3 | . 2 1 Matter Fused 4 | . 3 1 Heat Flow Errors 5 | . 1 4 Energy Discharges 2 | . 1 1 Data Loss (minor) 3 | . 1 2 Alerts 2 | . 2 . Overload Shots . | . . . Overflow Damage . | . . . Projectiles . | . . . Explosions . | . . . Melee . | . . . Knockbacks . | . . . Impact . | . . . Kinetic . | . . . Secondary . | . . . Self-Inflicted Damage . | . . . Shots . | . . . Rammed 6 | . 6 . Targets Rammed 7 | . 7 . Kicked . | . . . Crushed 1 | . 1 . Highest Temperature 210 | . 131 210 Average Temperature 30 | . 14 95 Received Heat Transfer 282 | . 282 . Siege Activations . | . . . Robots Corrupted . | . . . Combat Hostiles . | . . . Parts Fried . | . . . Impact Corruptions . | . . . Robots Melted . | . . . Combat Hostiles . | . . . Parts Melted . | . . . Heat Transferred . | . . . Parts Sabotaged . | . . . Parts Stolen . | . . . Parts Stripped . | . . . Power Chain Reactions . | . . . Missiles Intercepted . | . . . Alert | -11 -10 -10 ------- Run | Scr Mat Min Peak Influence 235 | . 235 1 Initial 1 | . . 1 Average 46 | . 63 . Maximum Alert Level 1 | . 1 . Low Security (%) 96 | 100 95 100 Level 1 3 | . 4 . Level 2 . | . . . Level 3 . | . . . Level 4 . | . . . Level 5 . | . . . High Security . | . . . Max Security . | . . . Squads Dispatched 2 | . 2 . Investigation 1 | . 1 . Extermination . | . . . Reinforcement 1 | . 1 . Assault . | . . . Garrison . | . . . Intercept . | . . . Searches Triggered . | . . . Construction Impeded . | . . . Haulers Reinforced . | . . . Active Scanning Responses . | . . . Cargo Convoy Interrupts . | . . . Stealth | -11 -10 -10 --------- Run | Scr Mat Min Distress Signals 1 | . 1 . Communications Jammed . | . . . Distress Signals . | . . . Times Spotted 44 | . 37 7 Peak Tracking Total 6 | . 4 6 Tactical Retreats 3 | . 2 1 Traps | -11 -10 -10 ------- Run | Scr Mat Min Traps Triggered 3 | . 3 . Indirectly . | . . . Trap Hack Attempts . | . . . Triggered . | . . . Disarmed . | . . . Reprogrammed . | . . . Reused . | . . . Traps Extracted . | . . . Installed . | . . . Triggered . | . . . Machines | -11 -10 -10 ---------- Run | Scr Mat Min Machines Disabled . | . . . Max in Single Turn . | . . . Machines Sabotaged . | . . . Garrisons Compromised . | . . . Overloaded Fab Kills . | . . . Hacking | -11 -10 -10 --------- Run | Scr Mat Min Machines Accessed 5 | . 4 1 Terminals 4 | . 4 . Fabricators . | . . . Repair Stations . | . . . Recycling Units . | . . . Scanalyzers . | . . . Garrison Access . | . . . Total Hacks 14 | . 13 1 Successful 6 | . 5 1 Failed 8 | . 8 . Catastrophic 3 | . 3 . Database Lockouts . | . . . Manual 10 | . 10 . Terminals 13 | . 13 . Fabricators . | . . . Repair Stations . | . . . Recycling Units . | . . . Scanalyzers . | . . . Garrison Access . | . . . Terminal Hacks 5 | . 4 1 Open Door 1 | . . 1 Emergency Access Points 1 | . 1 . Unreport Threat 1 | . 1 . Locate Traps 2 | . 2 . Fabricator Hacks . | . . . Repair Station Hacks . | . . . Recycling Unit Hacks . | . . . Scanalyzer . | . . . Garrison Access Hacks . | . . . Unauthorized Hacks 1 | . 1 . Terminals 1 | . 1 . Operators 1 | . 1 . Fabricators . | . . . Repair Stations . | . . . Recycling Units . | . . . Scanalyzers . | . . . Garrison Access . | . . . Data Cores Recovered . | . . . Used . | . . . Hacking Detections 4 | . 4 . Full Trace Events 1 | . 1 . Feedback Events . | . . . Feedback Blocked . | . . . Robot Schematics Acquired . | . . . Robots Built . | . . . Authchips . | . . . Time . | . . . Total Robot Build Rating . | . . . Part Schematics Acquired . | . . . Parts Built . | . . . Authchips . | . . . Time . | . . . Total Part Build Rating . | . . . Parts Repaired . | . . . Time . | . . . Parts Recycled . | . . . Recycled Matter . | . . . Retrieved Matter . | . . . Retrieved Components . | . . . Parts Scanalyzed . | . . . Part Schematics Acquired . | . . . Parts Damaged . | . . . Bothacking | -11 -10 -10 ------------ Run | Scr Mat Min Used RIF Installer . | . . . Robots Hacked . | . . . Non-combat . | . . . Combat . | . . . Robot Hacks Applied . | . . . Relay Couplers Released . | . . . Fabnet Peak Effective % . | . . . Robots Rewired . | . . . Allies Hacked . | . . . Hacks Repelled . | . . . Allies | -11 -10 -10 -------- Run | Scr Mat Min Total Allies . | . . . Largest Group . | . . . Highest-Rated Group . | . . . Highest-Rated Ally . | . . . Total Orders . | . . . Ally Attacks . | . . . Total Damage . | . . . Kills . | . . . Allies Corrupted . | . . . Allies Melted . | . . . Intel | -11 -10 -10 ------- Run | Scr Mat Min Robot Analysis Total . | . . . Derelict Logs Recovered . | . . . Drone Launches . | . . . Drone Recoveries . | . . . Exploration | -11 -10 -10 ------------- Run | Scr Mat Min Turns Passed 1761 | 79 1260 422 Spaces Moved 860 | 43 581 236 Core 5 | 5 . . Treads 855 | 38 581 236 Legs . | . . . Wheels . | . . . Hover . | . . . Flight . | . . . Fastest Speed 50 | 50 160 160 Average Speed 159 | 149 160 160 Slowest Speed 160 | 160 160 160 Overloaded Moves . | . . . Propulsion Burnouts . | . . . Robots Hopped . | . . . Cave-ins Triggered . | . . . Exploration Rate (%) 40 | 5 63 54 Regions Visited 2 Branch Regions 1 Pre-discovered Areas . | . . . Known Exits Taken . | . . . Unknown Exits Taken 2 | 1 1 . Scrap Searched 1 | . . 1 Spaces Dug . | . . . Terrain Destroyed . | . . . Melee . | . . . Projectile . | . . . AOE . | . . . Terrain Rammed . | . . . Walls Destroyed . | . . . Machines Disabled . | . . . Actions | -11 -10 -10 --------- Run | Scr Mat Min Total 1094 | 55 758 281 Wait 87 | . 42 45 Move 858 | 42 580 236 Hop . | . . . Pick Up 25 | 7 18 . Fast Attach 7 | 5 2 . Attach 2 | 1 1 . Detach . | . . . Swap 4 | . 4 . Drop 14 | . 14 . Fire 90 | . 90 . Melee . | . . . Ram . | . . . Kick . | . . . Crush 7 | . 7 . Escape Stasis . | . . . Rewire . | . . . Trap . | . . . Miscellaneous . | . . . Route ------- -11/Scrapyard -10/Materials (discovered 3 exits: [*Mat x2] / *Min) -10/Mines (discovered 1 exit: [*Mat]) History --------- Turn | Location | Event 4 | -11/Scrapyard | Discovered new exit (range 16) 80 | -11/Scrapyard | Entered Materials 309 | -10/Materials | Build established: Mutant 718 | -10/Materials | Core integrity fell below 50% 778 | -10/Materials | Discovered new exit (range 14) 925 | -10/Materials | Discovered new exit (range 15) 1104 | -10/Materials | Discovered new exit (range 8) 1340 | -10/Materials | Entered Mines 1488 | -10/Mines | Discovered new exit (range 7) 1505 | -10/Mines | Met a Derelict who couldn't figure out how to use a Trap Extractor 1713 | -10/Mines | Assembled infested the area 1718 | -10/Mines | Assisted by a Guerilla fighting off Assembled 1754 | -10/Mines | Core integrity fell below 20% 1762 | -10/Mines | Destroyed by D-53 Grenadier with Mini Grenade Launcher Last Messages --------------- repeatedly making a mess in Materials. Shooting at robots and generally destroying stuff raised the alert level high enough to trigger assault squads over in the main complex, and they later decided the best way to defend their interests would be to start expanding in this direction." 01720_ M1-J0X(h): "I'll hold them off! Go on ahead or try to find another way!" 01727_ HV Slug penetrates as-69875. 01727_ as-69875 destroyed. 01729_ HV Slug penetrates as-79574. 01729_ as-79574 suffers critical hit (Destroy). 01729_ as-79574 destroyed. 01744_ System corrupted: Heat flow error (+225). 01750_ C-30 ARC bursts open, deploying its payload. 01750_ D-53 Grenadier unfolds itself. 01751_ Lgt. Assault Rifle destroyed. 01752_ Lgt. Ion Engine destroyed. 01754_ U-05 Engineer lays Concrete. 01755_ U-05 Engineer builds a Wall. 01755_ U-05 Engineer destroyed. 01757_ K-01 Serf collects debris. Map ----- +----------------------------------------------------+ | ??????????????????????????????????????????? #???? | | ??????????????????????????????????????????? #???? | | ??????????????????????????????????????????? #???? | | ??????????????????????????????????????????? ###?? | | ??????????????????????????????????????????? #?? | | ??????????????????????????????????????????? #?? | | ??????????????????????????????????????????# #?? | | ????????????????????????????????????????## ##? | | ???????????????????????????????????????## "?? | | ???????????????????????????????????#???# #?? | | ???????????????????????????????????# ??#% #?? | | ???????????????????????????????????# ## #?? | | ????????????????????????????????????? $ % #??? | | ??????????????????????????????????????? % % #???? | | ????????????????????????????????????????# #???? | | ???????????????????????????????????????## #???? | | ???????????????????????????????????????# #???? | | ???????????????????????????????????????# ##???? | | ????????????????????#####??????????????# ##????? | | ???????????????????## # ##?###????????## #?????? | | ???????????????????# ## #####?????# #?????? | | ???????????????????# # #######% #?????? | | ????????????????????# ##????? | | ?????????????????#### ##### ###??? | | ????????????????## ! #??## ##?? | | ????????????????# @d #??# #?? | | ????????????????# #### ##?? | | ????????????????## ! ##??? | | ?????#####???????# k d #???? | | ????## ##??????## ## ###### ##???? | | ?#### ###?????## "% ### ##????# #????? | | ## ##?????## ######??##?????# #????? | | # #?????## ##??????????????# #????? | | # #??#### #???????????????# #????? | | ## ## ##?## ##???????????????# #????? | | ## ##### ##?## ###????????????????# #????? | | # ##????###?## ##??????????????????# #????? | | #?????????# #???????????????????? #????? | | #?????????# ##???????????????????? #????? | | ##?????????# #????????????????????? #????? | | #?????###### ##????????????????????? #????? | | #????## ## ##?????????????????????? ?????? | | #????# ##??????????????????????? ?????? | | ###??# ##???????????????????????? ?????? | | #### ##????????????????????????????????? | | ## ##????????????????????????????????? | | # #????????????????????????????????? | | #????????????????????????????????? | | #### ##????????????????????????????????? | | ##??# ##????????????????????????????????? | +----------------------------------------------------+ Best States ------------- Heat Dissipation 25 Energy Generation 10 Energy Capacity 125 Matter Stores 300 Matter Capacity 300 Sight Range 16 Terrain Scan Density 10 Armor Coverage 150 Evasion (%) 40 Recoil Reduction 2 Item Schematics ----------------- None Robot Schematics ------------------ None Fabricated ------------ Nothing Alien Tech Used ----------------- None Achievements -------------- None Challenges ------------ None Game ------ Seed ColdAdvancedInterrupter Manual? 0 Play Time 00:09:36 Cumulative 331.5 hours Start 2022.04.14 @ 16:49:22 End 2022.04.14 @ 16:57:38 Sessions 1 Manual Loads 0 Difficulty Rogue Special Mode None Game No. 348 Rogue 348 Adventurer 0 Explorer 0 Win Type - Total 19 Types 11/2/3/2/0/0/0/1/0 Lore% 90 Gallery% 86 Achievement% 74 Wizard Run 0 Options --------- ASCII 0 Keyboard 0 Movement Arrows Keybinds 0 Fullscreen 1 Font 18/Smallcaps Map View 76x50 Tactical HUD 1 Map Filters NONE Filters NONE Steam 1 RUN: 5b55a2aa-123c-46ba-82c8-1fd9732df32c